fUST/lending_fUST_20241204
["ID","MTS","AMOUNT","RATE_DAILY","PERIOD"]
[344119847,1733280639191,-279.12473739,0.00031173,2]
[344119849,1733280639200,-158.8047333,0.00031173,5]
[344119852,1733280639210,-159.11246057,0.00031173,5]
[344119854,1733280639220,-500.20377707,0.00031173,5]
[344119856,1733280639230,-160.30371675,0.00031173,5]
[344119858,1733280639239,-500.0,0.00031173,5]
[344119860,1733280639249,-500.0,0.00031173,5]
[344119862,1733280639260,-500.0,0.00031173,5]
[344119864,1733280639270,-500.0,0.00031173,5]
[344119866,1733280639280,-539.82415011,0.00031173,5]
[344119869,1733280639291,-391.3103223,0.00031173,5]
[344119871,1733280639300,-433.72221058,0.00031173,5]
[344119873,1733280639310,-501.72323179,0.00031173,5]
[344119874,1733280639321,-168.0,0.00031177,7]
[344119877,1733280639331,-168.0,0.00031177,7]
[344119879,1733280639341,-500.0,0.00031177,7]
[344119880,1733280639351,-500.0,0.00031178,7]
[344119881,1733280639364,-500.0,0.00031178,7]
[344119882,1733280639373,-86.15118426,0.00031178,2]
[344119970,1733280643729,-5439.55616088,0.000311,2]
[344119972,1733280643739,-268.49,0.00031178,10]
[344119974,1733280643748,-413.84881574,0.00031178,2]
[344119976,1733280643758,-500.0,0.00031178,2]
[344119978,1733280643767,-500.0,0.00031178,2]
[344119980,1733280643777,-500.0,0.00031178,2]
[344119981,1733280643786,-500.0,0.00031178,2]
[344119983,1733280643796,-500.0,0.00031178,2]
[344119985,1733280643805,-500.0,0.00031178,2]
[344119987,1733280643814,-500.0,0.00031178,2]
[344119989,1733280643824,-500.0,0.00031178,2]
[344119991,1733280643833,-500.0,0.00031178,2]
[344119993,1733280643842,-500.0,0.00031178,2]
[344119995,1733280643852,-500.0,0.00031178,2]
[344119997,1733280643861,-500.0,0.00031178,2]
[344119999,1733280643871,-500.0,0.00031178,2]
[344120001,1733280643880,-230.27910833,0.00031178,2]
[344120003,1733280643889,-500.0,0.00031178,2]
[344120005,1733280643898,-500.0,0.00031178,2]
[344120007,1733280643907,-500.0,0.00031178,2]
[344120009,1733280643916,-500.0,0.00031178,2]
[344120011,1733280643927,-500.0,0.00031178,2]
[344120013,1733280643937,-500.0,0.00031178,2]
[344120015,1733280643946,-500.0,0.00031178,2]
[344120017,1733280643955,-500.0,0.00031178,2]
[344120020,1733280643965,-291.25660045,0.00031178,2]
[344120021,1733280643974,-500.0,0.00031178,2]
[344120023,1733280643984,-500.0,0.00031178,2]
[344120025,1733280643993,-500.0,0.00031178,2]
[344120027,1733280644002,-500.0,0.00031178,2]
[344120029,1733280644010,-500.0,0.00031178,2]
[344120031,1733280644019,-500.0,0.00031178,2]
[344120033,1733280644028,-500.0,0.00031178,2]
[344120035,1733280644038,-500.0,0.00031178,2]
[344120037,1733280644048,-500.0,0.00031178,2]
[344120039,1733280644057,-500.0,0.00031178,2]
[344120042,1733280644066,-500.0,0.00031178,2]
[344120044,1733280644076,-500.0,0.00031178,2]
[344120046,1733280644086,-500.0,0.00031178,2]
[344120048,1733280644095,-167.59084408,0.00031178,2]
[344120050,1733280644104,-500.0,0.00031178,2]
[344120051,1733280644114,-500.0,0.00031179,7]
[344120053,1733280644123,-201.53280319,0.00031179,7]
[344120194,1733280646543,-500.0,0.00030136,7]
[344120196,1733280646553,-500.0,0.00030136,7]
[344120198,1733280646562,-500.0,0.00030136,7]
[344120200,1733280646571,-500.0,0.00030136,7]
[344120202,1733280646581,-601.2862897,0.00030136,7]
[344120203,1733280646590,-6666.0,0.000308,2]
[344120205,1733280646600,-298.46719681,0.00031179,7]
[344120208,1733280646610,-500.0,0.00031179,7]
[344120209,1733280646620,-500.0,0.00031179,7]
[344120212,1733280646630,-500.0,0.00031179,7]
[344120214,1733280646639,-500.0,0.00031179,7]
[344120216,1733280646649,-500.0,0.00031179,7]
[344120218,1733280646658,-500.0,0.00031179,7]
[344120220,1733280646669,-500.0,0.00031179,7]
[344120222,1733280646686,-500.0,0.00031179,7]
[344120224,1733280646695,-500.0,0.00031179,7]
[344120226,1733280646705,-276.2,0.00031179,7]
[344120228,1733280646714,-151.0,0.00031179,7]
[344120230,1733280646723,-151.0,0.00031179,7]
[344120232,1733280646732,-181.605171,0.00031179,7]
[344120234,1733280646742,-168.0,0.00031179,7]
[344120236,1733280646751,-3200.0,0.00031179,2]
[344120238,1733280646761,-150.5,0.00031181,120]
[344120239,1733280646770,-168.0,0.00031183,7]
[344120241,1733280646782,-500.0,0.00031183,7]
[344120243,1733280646791,-500.0,0.00031183,7]
[344120245,1733280646801,-172.386919,0.00031184,7]
[344120247,1733280646810,-244.021595,0.00031184,7]
[344120249,1733280646819,-244.021595,0.00031184,7]
[344120251,1733280646828,-244.021595,0.00031184,7]
[344120253,1733280646837,-244.021595,0.00031184,7]
[344120255,1733280646847,-244.021595,0.00031184,7]
[344120257,1733280646856,-244.021595,0.00031184,7]
[344120259,1733280646865,-244.021595,0.00031184,7]
[344120261,1733280646874,-244.021595,0.00031184,7]
[344120263,1733280646883,-244.021595,0.00031184,7]
[344120265,1733280646892,-244.021595,0.00031184,7]
[344120267,1733280646901,-244.021595,0.00031184,7]
[344120269,1733280646910,-244.021595,0.00031184,7]
[344120271,1733280646919,-244.021595,0.00031184,7]
[344120273,1733280646930,-244.021595,0.00031184,7]
[344120275,1733280646939,-244.021595,0.00031184,7]
[344120277,1733280646947,-244.021595,0.00031184,7]
[344120279,1733280646957,-244.021595,0.00031184,7]
[344120281,1733280646967,-244.021595,0.00031184,7]
[344120282,1733280646976,-244.021595,0.00031184,7]
[344120283,1733280646985,-244.021586,0.00031184,7]
[344120284,1733280646994,-471.43789867,0.00031184,7]
[344120285,1733280647003,-151.0,0.00031184,7]
[344120286,1733280647012,-203.310534,0.00031184,7]
[344120287,1733280647022,-47493.96167419,0.00031187,2]
[344120288,1733280647874,-3990.4496392,0.00031187,2]
[344120289,1733280647895,-1475.92599009,0.00031187,2]
[344120290,1733280647904,-860.89544618,0.00031188,7]
[344120291,1733280647914,-860.89544618,0.00031188,7]
[344120292,1733280647925,-49823.92823122,0.00031188,10]
[344120293,1733280654415,341.55000906,0.00024953,2]
[344120296,1733280723081,1058.46044632,5e-05,30]
[344120297,1733280783420,166.249455,0.00013973,2]
[344120310,1733281422670,165.920366,0.00013973,2]
[344120313,1733281556119,-288.75780714,0.00023969,2]
[344120314,1733281556146,-300.0,0.00028557,2]
[344120315,1733281556169,-944.39363541,0.00028558,2]
[344120318,1733281637103,-300.0,0.00028557,2]
[344120319,1733281637128,-300.0,0.00028557,2]
[344120320,1733281637150,-3029.88892933,0.00028558,2]
[344120321,1733281637180,-770.82662129,0.00028558,2]
[344120322,1733281639104,-2983.49781913,0.00028558,2]
[344120323,1733281644102,-195.8003404,0.00028558,2]
[344120324,1733281647088,-865.4691534,0.00028558,2]
[344120325,1733281748094,-1274.60948411,0.00024953,2]
[344120340,1733281833020,-300.0,0.00028557,2]
[344120342,1733281833032,-300.0,0.00028557,2]
[344120344,1733281833042,-868.0,0.00028558,2]
[344120346,1733281833056,-1198.74006216,0.00028558,2]
[344120951,1733281839446,-10689.01581886,0.00028558,2]
[344120953,1733281839459,-3354.36762002,0.00028558,2]
[344120955,1733281839471,-1152.242426,0.00028559,2]
[344120957,1733281839481,-224.5610018,0.00028618,2]
[344120959,1733281839494,-158.0,0.0003,2]
[344120962,1733281839505,-500.0,0.00030035,2]
[344120964,1733281839516,-785.20739505,0.00030036,2]
[344120966,1733281839526,-150.0,0.000301,2]
[344120968,1733281839537,-218.82554185,0.00030136,7]
[344120970,1733281839548,-559.90105403,0.00030136,7]
[344120972,1733281839559,-500.0,0.00030136,7]
[344120974,1733281839570,-501.953268,0.00030136,7]
[344120976,1733281839581,-500.0,0.00030136,7]
[344120978,1733281839592,-500.0,0.00030136,7]
[344120980,1733281839603,-368.18260919,0.00030136,7]
[344120983,1733281839615,-500.0,0.00030136,7]
[344120985,1733281839628,-500.0,0.00030136,7]
[344120987,1733281839639,-500.0,0.00030136,7]
[344120989,1733281839650,-500.0,0.00030136,7]
[344120991,1733281839661,-500.0,0.00030136,7]
[344120993,1733281839672,-500.0,0.00030136,7]
[344120995,1733281839684,-500.0,0.00030136,7]
[344120998,1733281839699,-500.0,0.00030136,7]
[344121000,1733281839709,-500.0,0.00030136,7]
[344121002,1733281839719,-505.10582467,0.00030136,7]
[344121004,1733281839732,-500.0,0.00030136,7]
[344121006,1733281839743,-500.0,0.00030136,7]
[344121008,1733281839753,-500.0,0.00030136,7]
[344121010,1733281839765,-500.0,0.00030136,7]
[344121012,1733281839775,-500.0,0.00030136,7]
[344121014,1733281839787,-500.0,0.00030136,7]
[344121016,1733281839797,-500.0,0.00030136,7]
[344121018,1733281839807,-500.0,0.00030136,7]
[344121020,1733281839817,-500.0,0.00030136,7]
[344121022,1733281839827,-500.0,0.00030136,7]
[344121024,1733281839837,-500.0,0.00030136,7]
[344121026,1733281839847,-500.0,0.00030136,7]
[344121029,1733281839857,-500.0,0.00030136,7]
[344121031,1733281839867,-502.11739935,0.00030136,7]
[344121033,1733281839879,-500.0,0.00030136,7]
[344121035,1733281839889,-500.0,0.00030136,7]
[344121037,1733281839899,-500.0,0.00030136,7]
[344121039,1733281839911,-500.0,0.00030136,7]
[344121041,1733281839921,-500.0,0.00030136,7]
[344121043,1733281839933,-500.0,0.00030136,7]
[344121045,1733281839946,-500.0,0.00030136,7]
[344121047,1733281839958,-501.29653527,0.00030136,7]
[344121049,1733281839969,-500.0,0.00030136,7]
[344121051,1733281839981,-500.0,0.00030136,7]
[344121053,1733281839993,-223.92,0.00030136,7]
[344121056,1733281840004,-500.0,0.00030136,7]
[344121058,1733281840014,-500.0,0.00030136,7]
[344121060,1733281840025,-500.0,0.00030136,7]
[344121062,1733281840035,-572.69,0.00030136,7]
[344121064,1733281840045,-500.0,0.00030136,2]
[344121066,1733281840058,-500.0,0.00030136,7]
[344121068,1733281840068,-500.0,0.00030136,7]
[344121070,1733281840078,-500.0,0.00030136,7]
[344121072,1733281840090,-500.0,0.00030136,7]
[344121074,1733281840099,-500.0,0.00030136,7]
[344121076,1733281840110,-500.0,0.00030136,7]
[344121079,1733281840122,-500.0,0.00030136,7]
[344121081,1733281840133,-500.0,0.00030136,7]
[344121083,1733281840144,-215.11186553,0.00030136,7]
[344121085,1733281840156,-503.66787002,0.00030136,7]
[344121087,1733281840167,-500.0,0.00030149,7]
[344121089,1733281840177,-500.0,0.00030149,7]
[344121091,1733281840192,-180.665,0.00030149,25]
[344121093,1733281840203,-500.0,0.00030158,7]
[344121095,1733281840214,-500.0,0.00030158,7]
[344121097,1733281840224,-500.0,0.00030158,7]
[344121099,1733281840234,-500.0,0.00030158,2]
[344121102,1733281840244,-150.0,0.00030179,2]
[344121104,1733281840254,-532.0,0.00030179,2]
[344121106,1733281840265,-2172.0,0.00030179,2]
[344121108,1733281840275,-2376.0,0.00030179,2]
[344121110,1733281840285,-504.5061312,0.0003018,11]
[344121112,1733281840295,-710.28487676,0.00030186,2]
[344121114,1733281840309,-74.92251823,0.00030186,2]
[344121116,1733281840319,-269.76017153,0.00030297,7]
[344121119,1733281840330,-500.0,0.00030297,7]
[344121121,1733281840341,-312.36,0.000303,31]
[344121123,1733281840352,-312.36,0.000303,31]
[344121125,1733281840363,-312.36,0.000303,31]
[344121127,1733281840375,-312.36,0.000303,31]
[344121129,1733281840385,-312.36,0.000303,31]
[344121131,1733281840395,-245.53648742,0.000303,31]
[344121519,1733281844449,-170.35016028,0.0002886,2]
[344121711,1733281847024,814.83744461,0.00024953,2]
[344121715,1733281847056,-331.49975768,0.0002886,2]
[344121717,1733281847067,-732.40048464,0.0002886,2]
[344121719,1733281847077,-66.82351258,0.000303,31]
[344121721,1733281847086,-312.36,0.000303,31]
[344121723,1733281847095,-312.36,0.000303,31]
[344121725,1733281847105,-122.30820278,0.000303,31]
[344124173,1733282050965,165.920366,0.00013973,2]
[344124181,1733282444640,10000.0,0.00026,60]
[344124185,1733282643888,164.3842774,0.00013973,2]
[344124187,1733282826122,-300.0,0.0002865,2]
[344124188,1733282826147,-300.0,0.0002865,2]
[344124189,1733282826171,-251.55512284,0.0002865,30]
[344124190,1733282826195,-999.63890941,0.00028651,2]
[344124191,1733282832118,-5276.56704737,0.00028651,2]
[344124192,1733282847118,-961.61026987,0.00028651,2]
[344124193,1733282851098,-2214.89945879,0.00028651,2]
[344124195,1733282898896,532.54773246,0.000125,2]
[344124197,1733282919958,3570.65305643,0.0001,2]
[344124198,1733282920234,1128.31319064,0.0001999,2]
[344124205,1733282924051,1261.56212271,0.000109,2]
[344124207,1733282946089,-607.72096,0.00020377,2]
[344124208,1733282946111,-2531.09766597,0.00024,2]
[344124209,1733282947104,-1147.5620815,0.00024953,2]
[344124210,1733282947129,-900.0,0.00025469,3]
[344124211,1733282947151,-1145.61399143,0.0002661,30]
[344124255,1733283032205,-300.0,0.00027999,2]
[344124256,1733283032215,-300.0,0.00027999,2]
[344124257,1733283032225,-888.0,0.00028,2]
[344124258,1733283032367,-818.67389631,0.00028,2]
[344124259,1733283032380,-904.81521686,0.00028,2]
[344124261,1733283032390,-2998.0,0.00028,2]
[344124263,1733283032400,-2617.40578857,0.000284,2]
[344124265,1733283032425,-366.76262906,0.00028651,2]
[344124267,1733283032435,-170.488455,0.00028698,2]
[344124269,1733283032445,-576.121213,0.00028972,2]
[344124271,1733283032457,-1976.24569751,0.00029,7]
[344124405,1733283040048,-618.71675895,0.00029,7]
[344124711,1733283043193,-2181.65283179,0.00029,7]
[344124712,1733283043207,-3151.991198,0.00029,7]
[344124930,1733283047504,1252.60083536,0.00024953,2]
[344124931,1733283055413,731.62182348,0.00024953,2]
[344124933,1733283250862,165.613147,0.00013973,2]
[344124936,1733283840979,164.384279,0.00013973,2]
[344124938,1733284026130,-606.62102315,0.00026289,2]
[344124939,1733284026151,-340.95423064,0.00026455,2]
[344124940,1733284026173,-168.7463202,0.00026555,2]
[344124941,1733284026193,-1412.0097255,0.0002672,2]
[344124942,1733284026213,-429.732766,0.00026765,2]
[344124943,1733284026235,-167.777621,0.00026765,2]
[344124944,1733284026256,-300.0,0.00026827,2]
[344124945,1733284026277,-405.81533904,0.00026828,2]
[344124946,1733284028147,-3081.18466096,0.00026828,2]
[344124947,1733284028169,-2481.91030087,0.00026829,2]
[344124948,1733284030134,-3530.28746494,0.00026829,2]
[344124949,1733284044148,-1910.35060272,0.00026829,2]
[344124950,1733284053084,-8168.97544549,0.00026829,2]
[344124953,1733284152112,-341.55000906,0.00024953,2]
[344124954,1733284152131,-250.0,0.00026072,2]
[344124955,1733284152151,-204.4501861,0.00026653,2]
[344124956,1733284152170,-300.0,0.00026828,2]
[344124957,1733284152190,-8788.47618598,0.00026829,2]
[344124958,1733284152210,-993.85702644,0.00026834,2]
[344124959,1733284152229,-1523.5388216,0.00026934,2]
[344124960,1733284156154,-993.85702641,0.00027442,2]
[344124961,1733284166129,-207.73472628,0.00027899,2]
[344124962,1733284166150,-150.0,0.00027962,2]
[344124963,1733284166171,-993.85702641,0.00028051,2]
[344124964,1733284199831,170.087852,0.00026304,2]
[344124971,1733284232316,-300.0,0.00028143,2]
[344124972,1733284232326,-300.0,0.00028143,2]
[344124975,1733284232337,-9498.17222768,0.00028144,2]
[344124976,1733284232347,-5000.0,0.00028231,2]
[344124978,1733284232357,-5000.0,0.00028231,2]
[344124980,1733284232367,-5000.0,0.00028231,2]
[344124982,1733284232378,-5000.0,0.00028231,2]
[344124984,1733284232392,-3700.899681,0.00028231,2]
[344124986,1733284232401,-151.06867182,0.00028252,2]
[344124988,1733284232410,-493.3979905,0.00028294,2]
[344124990,1733284232420,-9498.17222768,0.00028294,2]
[344124992,1733284232431,-180.666,0.0002843,19]
[344124995,1733284232441,-1441.18493884,0.0002843,2]
[344124997,1733284232450,-208.993228,0.0002852,2]
[344124999,1733284232462,-489.73,0.00028649,3]
[344125001,1733284232471,-27897.40823815,0.00028654,2]
[344125003,1733284232481,-9498.17222769,0.00028654,2]
[344125005,1733284232490,-326.46,0.00028663,3]
[344125007,1733284232499,-163.23,0.00028663,3]
[344125009,1733284232510,-158.5406774,0.000289,2]
[344125011,1733284232519,-158.54067739,0.000289,2]
[344125013,1733284232528,-729.1,0.0002899,10]
[344125015,1733284232538,-607.59,0.0002899,10]
[344125016,1733284232548,-506.32,0.0002899,10]
[344125018,1733284232557,-574.6560158,0.00028999,2]
[344125021,1733284232567,-500.0,0.00028999,2]
[344125022,1733284232576,-457.37460574,0.00028999,2]
[344125023,1733284232585,-500.0,0.00028999,2]
[344125024,1733284232594,-500.0,0.00028999,2]
[344125025,1733284232603,-500.0,0.00028999,2]
[344125026,1733284232612,-500.0,0.00028999,2]
[344125027,1733284232622,-500.0,0.00028999,2]
[344125028,1733284232633,-500.0,0.00028999,2]
[344125029,1733284232642,-500.0,0.00028999,2]
[344125030,1733284232652,-500.0,0.00028999,2]
[344125031,1733284232661,-417.64853475,0.00028999,2]
[344125032,1733284232671,-605.55371186,0.00028999,2]
[344125034,1733284232680,-500.0,0.00028999,2]
[344125036,1733284232689,-500.0,0.00028999,2]
[344125038,1733284232698,-500.0,0.00028999,2]
[344125040,1733284232708,-500.0,0.00028999,2]
[344125042,1733284232717,-500.0,0.00028999,2]
[344125044,1733284232726,-500.0,0.00028999,2]
[344125046,1733284232735,-500.0,0.00028999,2]
[344125048,1733284232744,-500.0,0.00028999,2]
[344125050,1733284232756,-500.0,0.00028999,2]
[344125052,1733284232766,-500.0,0.00028999,2]
[344125054,1733284232777,-6028.64686074,0.00029,7]
[344125056,1733284232786,-58464.29868957,0.00029,30]
[344125058,1733284232796,-151.0,0.00029431,7]
[344125060,1733284232806,-208.993228,0.00029586,2]
[344125062,1733284232816,-500.0,0.00029831,5]
[344125064,1733284232825,-5836.66630466,0.00029852,3]
[344125066,1733284232835,-441.213447,0.00029852,7]
[344125068,1733284232845,-441.213447,0.00029852,7]
[344125070,1733284232854,-156.97826628,0.000299,5]
[344125073,1733284232974,-1042.80501495,0.000299,5]
[344125074,1733284232986,-79.37515913,0.000299,5]
[344125075,1733284232996,-270.33453351,0.000299,2]
[344125076,1733284233006,-502.4794918,0.00029973,5]
[344125077,1733284233015,-154.173998,0.00029998,7]
[344125078,1733284233026,-163.823866,0.00029998,7]
[344125079,1733284233036,-163.823866,0.00029998,7]
[344125080,1733284233046,-158.98908556,0.00029998,7]
[344125081,1733284233058,-33.07288144,0.00029998,7]
[344125082,1733284233067,-192.061967,0.00029998,7]
[344125083,1733284233077,-500.0,0.00029999,2]
[344125084,1733284233087,-37566.12415156,0.0003,2]
[344125139,1733284238731,-27185.64352106,0.0003,2]
[344125140,1733284238771,-392.25416277,0.0003,2]
[344125398,1733284246279,-621.18123144,0.0003,2]
[344125401,1733284298642,214.866383,0.00026578,2]
[344125405,1733284563499,165.497088,0.00013973,2]
[344125411,1733285142161,-206.762923,0.00026062,2]
[344125412,1733285142194,-33.76776244,0.00026384,2]
[344125413,1733285202745,1417.0,0.00026,60]
[344125416,1733285226714,165.497088,0.00013973,2]
[344125417,1733285229086,-626.23223756,0.00026384,2]
[344125418,1733285229110,-180.66628087,0.00027152,15]
[344125419,1733285229132,-300.0,0.00027152,2]
[344125420,1733285229155,-300.0,0.00027152,2]
[344125421,1733285229176,-5874.30881105,0.00027153,2]
[344125423,1733285247099,-969.95729833,0.00027153,2]
[344125428,1733285325917,375.8897451,0.00025999,60]
[344125430,1733285352093,-248.7904244,0.00026491,2]
[344125431,1733285358372,617.0653455,0.00026307,2]
[344125432,1733285368155,-171.23081,0.00027181,2]
[344125433,1733285368177,-300.0,0.00027263,2]
[344125434,1733285368197,-300.0,0.00027263,2]
[344125435,1733285368218,-24900.0,0.00027264,2]
[344125436,1733285368238,-2713.4943108,0.0002737,2]
[344125437,1733285368260,-582.3590066,0.00027455,2]
[344125438,1733285368282,-504.6136039,0.00027455,2]
[344125439,1733285368303,-787.2616708,0.00027455,2]
[344125440,1733285368327,-176.084047,0.00027455,2]
[344125464,1733285432243,-151.0,0.00029,7]
[344125466,1733285432253,-208.993228,0.00029376,2]
[344125468,1733285432263,-241.085951,0.00029852,7]
[344125469,1733285432272,-300.0,0.00029972,2]
[344125471,1733285432281,-1711.69023644,0.00029973,3]
[344125479,1733285432354,-2885.46747595,0.00029973,3]
[344125693,1733285438366,-18079.33981783,0.00029973,3]
[344125696,1733285438376,-500.0,0.00029999,2]
[344125697,1733285438387,-14069.86909901,0.0003,2]
[344125699,1733285438396,-1023.66087682,0.00030026,2]
[344125701,1733285438406,-328.93199367,0.00030026,7]
[344125703,1733285438416,-163.23,0.00030126,3]
[344125705,1733285438425,-489.69,0.00030126,3]
[344125707,1733285438434,-95.56977856,0.00030135,2]
[344125808,1733285443361,-404.43022144,0.00030135,2]
[344125811,1733285443372,-456.17263465,0.00030135,2]
[344125813,1733285443384,-213.07205942,0.00030135,2]
[344125815,1733285443396,-500.0,0.00030136,7]
[344125817,1733285443407,-500.0,0.00030136,7]
[344125819,1733285443417,-500.0,0.00030136,7]
[344125822,1733285443428,-500.0,0.00030136,7]
[344125824,1733285443439,-500.0,0.00030136,7]
[344125826,1733285443451,-500.0,0.00030136,7]
[344125828,1733285443462,-500.0,0.00030136,7]
[344125830,1733285443473,-521.11925499,0.00030136,7]
[344125833,1733285443484,-40.63786268,0.00030136,7]
[344126252,1733285927434,165.311393,0.00013973,2]
[344126258,1733286430128,-176.084047,0.00028553,2]
[344126259,1733286430152,-170.087852,0.0002856,2]
[344126260,1733286430176,-300.0,0.00028723,2]
[344126261,1733286430198,-300.0,0.00028723,2]
[344126262,1733286430219,-400.0,0.00028723,2]
[344126263,1733286430241,-4521.02169858,0.00028724,2]
[344126264,1733286443137,-5417.26528762,0.00028724,2]
[344126265,1733286448080,-288.3372974,0.00028724,2]
[344126266,1733286448111,-206.7629245,0.00028827,2]
[344126267,1733286448139,-418.1679079,0.00028879,2]
[344126268,1733286448167,-150.0,0.00029968,2]
[344126269,1733286448195,-625.91311415,0.00029994,15]
[344126279,1733286546095,-607.72096,0.00020377,2]
[344126280,1733286546119,-1794.44919161,0.00024,2]
[344126281,1733286549137,-736.64847436,0.00024,2]
[344126347,1733286632436,-607.18737514,0.00029,7]
[344126360,1733286632546,-1574.46545665,0.00029,7]
[344126362,1733286632556,-1007.05334109,0.0003,3]
[344126364,1733286632565,-326.46,0.00030126,3]
[344126366,1733286632575,-400.0,0.00030133,2]
[344126368,1733286632585,-400.0,0.00030133,2]
[344126370,1733286632594,-165.42931408,0.00030134,2]
[344126372,1733286632604,-1167.46212181,0.00030134,2]
[344126374,1733286632613,-500.0,0.00030135,2]
[344126376,1733286632623,-1161.06818789,0.00030136,2]
[344126924,1733286638459,-9904.92288042,0.00030136,2]
[344126925,1733286638624,-2882.71305077,0.00030136,2]
[344126927,1733286638634,-219.28799578,0.00030136,7]
[344126929,1733286638643,-95.76151227,0.00030136,7]
[344126969,1733286643633,-61.60062505,0.00030136,7]
[344126970,1733286643643,-394.35461265,0.00030136,7]
[344126971,1733286643653,-500.0,0.00030136,7]
[344126972,1733286643664,-500.0,0.00030136,7]
[344126973,1733286643676,-502.70658113,0.00030136,7]
[344126974,1733286643687,-500.0,0.00030136,7]
[344126975,1733286643699,-500.0,0.00030136,7]
[344126977,1733286643710,-500.0,0.00030136,7]
[344126979,1733286643721,-500.0,0.00030136,7]
[344126981,1733286643732,-83.20075018,0.00030136,7]
[344127016,1733286826769,165.311393,0.00013973,2]
[344127038,1733287478054,167.695873,0.00013973,2]
[344127042,1733287541108,-300.0,0.00026899,2]
[344127043,1733287541132,-300.0,0.00026899,2]
[344127044,1733287541155,-731.77256495,0.000269,2]
[344127047,1733287628104,-300.0,0.00026899,2]
[344127048,1733287628126,-300.0,0.00026899,2]
[344127049,1733287628150,-2718.40247876,0.000269,2]
[344127051,1733287635170,-10763.73402407,0.000269,2]
[344127052,1733287644086,-1816.31127228,0.000269,2]
[344127053,1733287644292,-1956.84138147,0.000269,2]
[344127054,1733287644315,-223.0,0.00027,2]
[344127055,1733287644336,-223.0,0.00027671,2]
[344127056,1733287644358,-3787.78541045,0.00027837,2]
[344127081,1733287832603,-300.0,0.00027836,2]
[344127082,1733287832612,-300.0,0.00027836,2]
[344127083,1733287832623,-6391.6971499,0.00027837,2]
[344127369,1733287843627,-3885.20847735,0.00027837,2]
[344127370,1733287843636,-250.0,0.00028485,2]
[344127371,1733287843645,-223.0,0.00028767,2]
[344127372,1733287843654,-169.892527,0.00028841,2]
[344127373,1733287843664,-151.0,0.00029767,7]
[344127374,1733287843673,-173.06966159,0.0003,120]
[344127375,1733287843685,-126.93033841,0.0003,120]
[344127376,1733287843694,-1343.3801317,0.00030036,2]
[344127377,1733287843703,-420.0,0.00030068,2]
[344127378,1733287843713,-151.0,0.00030122,7]
[344127379,1733287843723,-583.73106091,0.00030135,2]
[344127381,1733287843734,-24.32082891,0.00030135,2]
[344127400,1733288122521,167.695873,0.00013973,2]
[344127403,1733288742132,-207.73472628,0.00027736,2]
[344127404,1733288742156,-157.01978076,0.00028112,2]
[344127405,1733288742175,-214.866383,0.00028309,2]
[344127406,1733288742197,-250.0,0.00028425,2]
[344127407,1733288742219,-170.087852,0.00028445,2]
[344127408,1733288742238,-2797.03982787,0.00028652,2]
[344127410,1733288825081,-169.892527,0.00028463,2]
[344127411,1733288825101,-300.0,0.00028736,2]
[344127412,1733288825121,-300.0,0.00028736,2]
[344127413,1733288825141,-284.70016873,0.00028737,2]
[344127414,1733288827121,-251.55512284,0.00028736,30]
[344127415,1733288827142,-644.65445228,0.00028737,2]
[344127416,1733288835116,-982.64600603,0.00028737,2]
[344127417,1733288835146,-3205.11301935,0.00028737,2]
[344127418,1733288849099,-2181.95406811,0.00028737,2]